[Event "SixDays Budapest March GM A 2025"]
[Site "Budapest"]
[Date "2025.03.25"]
[Round "2.4"]
[White "Rohrer, Christophe"]
[Black "Jake Shanty"]
[Result "1/2-1/2"]
[Annotator "TA"]
[ECO "C07"]
[WhiteElo "2266"]
[BlackElo "2336"]
[PlyCount "152"]
[EventDate "2025.03.23"]
[EventCountry "HUN"]
[SourceTitle "playchess.com"]
[Source "ChessBase"]
[SourceQuality "1"]
[TimeControl "5400+30"]

{[%evp 23,152,30,33,34,30,14,17,6,16,24,26,25,47,35,34,33,41,15,16,0,41,14,14,0,39,34,23,35,41,29,44,37,45,38,38,38,35,35,33,27,34,29,26,33,25,38,41,30,47,32,30,31,60,56,49,35,40,34,62,39,44,46,49,16,45,28,28,33,29,29,26,26,36,37,32,36,33,35,35,36,34,34,38,0,8,8,8,8,8,8,8,8,8,8,8,8,8,8,22,8,8,0,0,0,8,8,8,0,8,0,0,0,8,8,8,0,0,0,0,0,0,0,0,0,0,0,8,0,0,0,0]} 1. e4 {[%emt 0:00:04]} e6 {[%emt 0:00:15]} 2. d4 {[%emt 0:00:09]} d5 {[%emt 0:00:12]} 3. Nd2 {[%emt 0:00:14]} c5 {[%emt 0:00:20]} 4. exd5 {[%emt 0:00:25]} Qxd5 {[%emt 0:00:26]} 5. Ngf3 {[%emt 0:00:26]} cxd4 {[%emt 0:00:44]} 6. Bc4 {[%emt 0:00:14]} Qd6 {[%emt 0:00:37]} 7. O-O {[%emt 0:00:19]} Nf6 {[%emt 0:01:20]} 8. Nb3 {[%emt 0:00:13]} Nc6 {[%emt 0:01:02]} 9. Nbxd4 {[%emt 0:00:17]} Nxd4 {[%emt 0:00:30]} 10. Nxd4 {[%emt 0:00:20]} Be7 {[%emt 0:01:22]} 11. c3 {[%emt 0:00:51]} O-O {[%emt 0:01:19]} 12. Qf3 {[%emt 0:01:43]} Qc7 {[%emt 0:07:23]} 13. Bb3 {[%emt 0:02:59] C07: French Tarrasch: 3...c5, 4 Ngf3 and 4 exd5 Qxd5.} a5 {[%emt 0:13:18]} 14. a4 {[%emt 0:02:59]} Bd7 {[%emt 0:07:10]} 15. Re1 {[%emt 0:04:23]} Bd6 {[%emt 0:17:33]} 16. h3 {[%emt 0:01:35]} Rfe8 $146 {[%emt 0:08:32]} (16... Qb6 17. Bc2 Rac8 18. Rb1 Nd5 19. Nf5 exf5 20. Qxd5 Be6 21. Qf3 g6 22. Be3 Bc5 23. Bxc5 Rxc5 {½-½ Womacka,M (2371)-Fromm,M (2472) Titled Tuesday intern op 05th Sep Early blitz 2023 (6)}) 17. Bg5 {[%emt 0:03:46]} Be5 {[%emt 0:03:09]} 18. Rad1 {[%emt 0:11:33]} h6 {[%emt 0:12:38]} 19. Bc1 {[%emt 0:08:03]} Rad8 {[%emt 0:08:52]} 20. Be3 {[%emt 0:11:25]} Nd5 {[%emt 0:06:35]} 21. Bc1 {[%emt 0:07:41]} Nf6 {[%emt 0:02:14]} 22. Qe2 {[%emt 0:03:21]} Bh2+ {[%emt 0:00:51]} 23. Kf1 {[%emt 0:01:35]} Bd6 {[%emt 0:01:27] Not much happening anymore} 24. Nb5 {[%emt 0:04:29]} Bxb5 {[%emt 0:00:08]} 25. Qxb5 {[%emt 0:00:20]} Bf4 {[%emt 0:03:52]} 26. Bxf4 {[%emt 0:03:46]} Qxf4 {[%emt 0:00:08]} 27. Qe5 {[%emt 0:00:04]} (27. Qxb7 $2 {perishes.} Rb8 28. Qc6 Rxb3 $19) 27... Qxe5 {[%emt 0:01:17]} 28. Rxe5 {[%emt 0:00:06]} b6 {[%emt 0:00:31]} 29. Rb5 {[%emt 0:01:44]} Rxd1+ {[%emt 0:00:39]} 30. Bxd1 $14 {[%emt 0:00:05][%mdl 4096] Endgame KRB-KRN} Nd7 {[%emt 0:00:28]} 31. b4 {[%emt 0:03:04]} Rc8 {[%emt 0:00:28]} 32. bxa5 {[%emt 0:00:29]} bxa5 {[%emt 0:00:06]} 33. Rxa5 {[%emt 0:00:56]} Rxc3 {[%emt 0:00:08]} 34. Ra8+ {[%emt 0:03:26]} Kh7 {[%emt 0:00:07]} 35. Ke2 {[%emt 0:01:26]} Nc5 {[%emt 0:01:24]} 36. f3 {[%emt 0:02:17]} Kg6 {[%emt 0:00:43]} 37. Kd2 {[%emt 0:01:29]} Rd3+ {[%emt 0:00:29]} 38. Kc2 {[%emt 0:00:50]} Kf6 {[%emt 0:00:30]} 39. Ra5 {[%emt 0:04:10]} Rd5 {[%emt 0:00:21]} 40. Be2 {[%emt 0:01:14]} Ke7 {[%emt 0:00:36]} 41. Bc4 {[%emt 0:02:30]} Rg5 {[%emt 0:00:36]} 42. g4 {[%emt 0:02:49] [#]} Kd6 {[%emt 0:00:14]} 43. Ra7 {[%emt 0:01:35][%cal Oc2d2]} f5 {[%emt 0:00:45]} 44. a5 {[%emt 0:01:18][%cal Ba4a5,Ba5a6][%mdl 32]} fxg4 {[%emt 0:00:11]} 45. hxg4 {[%emt 0:00:10]} h5 {[%emt 0:00:43]} 46. gxh5 {[%emt 0:00:43]} Rxh5 {[%emt 0:00:15]} 47. Rxg7 {[%emt 0:01:40] Hoping for a6.} Rf5 {[%emt 0:00:50]} 48. Be2 {[%emt 0:02:24]} Nd7 {[%emt 0:00:33]} 49. a6 {[%emt 0:00:13]} Ra5 {[%emt 0:00:09]} 50. Kb2 {[%emt 0:02:47]} Kc6 {[%emt 0:00:46]} 51. Rg6 {[%emt 0:00:37]} Nc5 {[%emt 0:00:27]} 52. Bc4 {[%emt 0:00:23]} Kc7 {[%emt 0:00:38]} 53. f4 {[%emt 0:00:49]} (53. Bxe6 Nxa6 54. Bc4 Nb4 $11) 53... Nxa6 {[%emt 0:00:29] The position is equal.} 54. Rxe6 {[%emt 0:01:09]} Nb4 {[%emt 0:00:14]} 55. Kb3 {[%emt 0:00:55]} Nc6 {[%emt 0:00:07]} 56. Re4 {[%emt 0:00:59]} Kd6 {[%emt 0:00:19]} 57. Kc3 {[%emt 0:00:21]} Ra3+ {[%emt 0:00:06]} 58. Kd2 {[%emt 0:00:05]} Ne7 {[%emt 0:00:30]} 59. Ke2 {[%emt 0:00:47]} Nf5 {[%emt 0:01:37] [#] ...Ng3+ is the strong threat.} 60. Kf2 {[%emt 0:00:37]} Rc3 {[%emt 0:00:19]} 61. Bf7 {[%emt 0:00:59]} Rc2+ {[%emt 0:00:32]} 62. Kf3 {[%emt 0:00:14]} Rc3+ {[%emt 0:00:05]} 63. Kf2 {[%emt 0:00:32]} Rc2+ {[%emt 0:00:01]} 64. Ke1 {[%emt 0:00:20]} Rb2 {[%emt 0:01:25]} 65. Re6+ {[%emt 0:00:47]} Kd7 {[%emt 0:00:08]} 66. Re5 {[%emt 0:00:06]} Nh4 {[%emt 0:00:39]} 67. Bd5 {[%emt 0:00:51]} Ng6 {[%emt 0:00:55][%csl LRe5,LRf4]} 68. Re4 {[%emt 0:00:04]} Nh4 {[%emt 0:00:29]} 69. Be6+ {[%emt 0:01:05]} Ke7 {[%emt 0:00:25]} 70. Bg4+ {[%emt 0:00:31]} Kf6 {[%emt 0:00:07]} 71. Kf1 {[%emt 0:00:30]} Nf5 {[%emt 0:00:09] ( -> ...Ng3+)} 72. Ke1 {[%emt 0:00:43]} Rg2 {[%emt 0:01:19]} 73. Bf3 {[%emt 0:00:18]} Rb2 {[%emt 0:00:09]} 74. Ra4 {[%emt 0:00:18]} Nh4 {[%emt 0:00:36]} 75. Be4 {[%emt 0:00:36]} Ng2+ {[%emt 0:00:09]} 76. Bxg2 {[%emt 0:00:12]} Rxg2 {[%emt 0:00:06] Weighted Error Value: White=0.07 (flawless) /Black=0.05 (flawless)   Inaccurate:     	White=4     	Black=4      OK:         	White=23    	Black=35     Best:        	White=1     	Black=3} 1/2-1/2

[Event "SixDays Budapest March GM A 2025"]
[Site "Budapest"]
[Date "2025.03.25"]
[Round "2.5"]
[White "Pap, Misa"]
[Black "Uskov, Artem"]
[Result "1/2-1/2"]
[Annotator "TA"]
[ECO "B22"]
[WhiteElo "2457"]
[BlackElo "2461"]
[PlyCount "32"]
[EventDate "2025.03.23"]
[EventCountry "HUN"]
[SourceTitle "playchess.com"]
[Source "ChessBase"]
[SourceQuality "1"]
[TimeControl "5400+30"]

{[%evp 14,19,-6,-15,0,-14,0,-11]} 1. e4 {[%emt 0:05:48]} c5 {[%emt 0:08:03]} 2. c3 {[%emt 0:00:23]} d5 {[%emt 0:00:06]} 3. exd5 {[%emt 0:00:05]} Qxd5 {[%emt 0:00:04]} 4. d4 {[%emt 0:00:46]} Nf6 {[%emt 0:00:09]} 5. Nf3 {[%emt 0:01:02]} e6 {[%emt 0:00:06]} 6. Bd3 {[%emt 0:00:47]} Be7 {[%emt 0:01:32]} 7. Be3 {[%emt 0:01:06]} O-O {[%emt 0:00:34]} 8. O-O {[%emt 0:00:24] The position is equal.} Rd8 {[%emt 0:01:18] B22: Sicilian: 2 c3.} 9. Qe2 {[%emt 0:00:43]} Nc6 {[%emt 0:00:16]} 10. Rd1 {[%emt 0:01:07] A rather calm draw.   Weighted Error Value: White=0.07 (flawless) /Black=0.14 (very precise)} {Predecessor:} cxd4 $146 11. cxd4 Nb4 12. Nc3 Qh5 13. Bc4 b6 14. a3 Nbd5 15. Rac1 Nxc3 16. Rxc3 Bb7 {0-1 Yudin,S (2599)-Artemiev,V (2803) Wch Blitz Almaty 2022 (7)} 1/2-1/2

[Event "SixDays Budapest March GM A 2025"]
[Site "Budapest"]
[Date "2025.03.25"]
[Round "3.1"]
[White "Uskov, Artem"]
[Black "Moldagali, Beksultan"]
[Result "1-0"]
[Annotator "TA"]
[ECO "C72"]
[WhiteElo "2461"]
[BlackElo "2398"]
[PlyCount "53"]
[EventDate "2025.03.23"]
[EventCountry "HUN"]
[SourceTitle "playchess.com"]
[Source "ChessBase"]
[SourceQuality "1"]
[TimeControl "5400+30"]

{[%evp 15,52,35,38,31,38,35,45,47,51,43,63,54,107,107,97,90,94,87,109,86,175,181,192,202,325,323,314,295,469,448,547,520,516,545,521,538,1004,1003,893]} 1. e4 {[%emt 0:09:16]} e5 {[%emt 0:00:12]} 2. Nf3 {[%emt 0:00:07]} Nc6 {[%emt 0:00:05]} 3. Bb5 {[%emt 0:00:04][%cal Bf1b5,Bb5a4,Ba4b3][%mdl 32]} a6 {[%emt 0:00:06]} 4. Ba4 {[%emt 0:00:04]} d6 {[%emt 0:01:27]} 5. O-O {[%emt 0:00:14]} Bd7 {[%emt 0:00:46]} 6. c3 {[%emt 0:00:09]} Nge7 {[%emt 0:00:08]} 7. d4 {[%emt 0:00:29]} Ng6 {[%emt 0:00:08]} 8. Nbd2 {[%emt 0:00:48]} Be7 {[%emt 0:00:24]} 9. Bb3 {[%emt 0:00:16] C75: Ruy Lopez: Deferred Steinitz: 5 c3 Bd7 6 d4 without ...g6.} O-O {[%emt 0:01:18]} 10. d5 {[%emt 0:00:14]} Nb8 $146 {[%emt 0:00:21]} (10... Na5 11. Bc2 b5 12. Re1 c6 13. dxc6 Bxc6 14. Nf1 Nc4 15. b3 Nb6 16. Ne3 Qc7 {½-½ Jung,R-Moeller,U DESC P2012 email}) 11. Nc4 {[%emt 0:00:09] White is slightly better.} a5 {[%emt 0:06:21]} 12. a4 {[%emt 0:03:05]} Kh8 {[%emt 0:01:37]} 13. Ne3 {[%emt 0:02:42] White is more active.} Bg5 {[%emt 0:04:58]} ({Black should play} 13... Nh4 $14) 14. Nxg5 $16 {[%emt 0:03:23]} Qxg5 {[%emt 0:00:09]} 15. Bc2 {[%emt 0:00:41]} Qh4 {[%emt 0:08:45]} 16. g3 {[%emt 0:07:25]} Qh3 {[%emt 0:00:27]} 17. Bd3 {[%emt 0:03:02]} f5 {[%emt 0:11:47]} 18. exf5 $18 {[%emt 0:03:20]} ({Don't play} 18. Nxf5 Na6) 18... Ne7 {[%emt 0:00:13][%cal Re7f5]} 19. f4 {[%emt 0:05:02]} Na6 {[%emt 0:06:06]} (19... e4) 20. fxe5 {[%emt 0:03:43]} dxe5 {[%emt 0:00:06][%cal Bd6e5,Be5e4][%mdl 32]} 21. Be4 {[%emt 0:01:44] and d6 should not be overlooked} Nxf5 {[%emt 0:07:34]} (21... Qh6 {was called for.} 22. Nc4 Qf6) 22. Nxf5 {[%emt 0:00:17] White is clearly winning.} Rxf5 {[%emt 0:03:15]} 23. Bxf5 {[%emt 0:00:58]} Bxf5 {[%emt 0:00:02]} 24. Qf3 {[%emt 0:01:46] Prevents Be4.} g6 {[%emt 0:00:16] [#]} 25. d6 $1 {[%emt 0:01:16]} e4 {[%emt 0:02:15]} (25... c6 26. Bg5) 26. Qf4 {[%emt 0:01:55]} cxd6 {[%emt 0:00:57]} 27. Qxd6 {[%emt 0:00:08] Black got outplayed after the opening.   Weighted Error Value: White=0.00 (flawless) /Black=0.70  Mistake:       	---       	Black=4      Inaccurate:     	---       	Black=1      OK:         	White=13    	Black=3      Best:        	White=1     	---} 1-0

[Event "SixDays Budapest March GM A 2025"]
[Site "Budapest"]
[Date "2025.03.25"]
[Round "3.2"]
[White "Jake Shanty"]
[Black "Pap, Misa"]
[Result "0-1"]
[Annotator "TA"]
[ECO "A04"]
[WhiteElo "2336"]
[BlackElo "2457"]
[PlyCount "80"]
[EventDate "2025.03.23"]
[EventCountry "HUN"]
[SourceTitle "playchess.com"]
[Source "ChessBase"]
[SourceQuality "1"]
[TimeControl "5400+30"]

{[%evp 10,80,41,35,39,53,35,48,56,45,41,35,31,31,85,68,60,55,56,38,95,117,166,128,131,157,214,183,178,152,195,147,160,158,209,176,147,159,166,0,251,141,157,131,169,-25,-35,-53,-31,-18,-49,-147,-133,-128,-122,-157,-133,-175,-153,-471,-470,-796,-813,-976,-928,-922,-899,-1121,-1118,-1570,-1534,-29993,-2943]} 1. Nf3 {[%emt 0:00:04]} c5 {[%emt 0:04:27]} 2. c4 {[%emt 0:00:28]} g6 {[%emt 0:00:40]} 3. Nc3 {[%emt 0:04:30]} Bg7 {[%emt 0:00:07]} 4. e3 {[%emt 0:03:49]} Nf6 {[%emt 0:00:06]} 5. d4 {[%emt 0:00:35]} O-O {[%emt 0:00:25]} 6. d5 {[%emt 0:05:04]} (6. dxc5 Na6 $11) 6... e6 {[%emt 0:02:13] E61: King's Indian: Early deviations for White, including Smyslov System.} 7. Bd3 {[%emt 0:07:02]} exd5 {[%emt 0:00:05]} 8. cxd5 {[%emt 0:00:09]} d6 {[%emt 0:01:14] White is slightly better.} 9. h3 {[%emt 0:02:10] Prevents Bg4.} Na6 {[%emt 0:07:18]} 10. O-O {[%emt 0:24:23]} Re8 {[%emt 0:00:03]} 11. Re1 {[%emt 0:09:49]} Nb4 $146 {[%emt 0:16:04] [#]} (11... Nc7 $14) ({Predecessor:} 11... Nc7 12. e4 b5 13. a3 Rb8 14. Bf4 a5 15. Rc1 b4 16. axb4 axb4 17. Na4 Bd7 {½-½ Salem,A (2644)-Puranik,A (2549) Wch Rapid Almaty 2022 (7)}) 12. Bb1 $1 $16 {[%emt 0:03:35]} c4 {[%emt 0:00:36]} 13. a3 {[%emt 0:08:15]} Qa5 {[%emt 0:09:13]} 14. e4 {[%emt 0:12:28]} (14. axb4 Qxa1 15. Nd2 Nd7 $17) 14... Bd7 {[%emt 0:03:25]} ({Black should try} 14... Qa6 $1 $14) 15. Bf4 {[%emt 0:05:06]} (15. axb4 Qxa1 16. Qe2 Qa6 $17 (16... Nxd5 $2 17. Nxd5 Qxb1 18. Nc7 $17)) 15... Bf8 {[%emt 0:09:41]} (15... Qa6 $16) 16. Qd2 {[%emt 0:05:08] aiming for Na2.} (16. axb4 Qxa1 17. Qe2 Qa6 $11) 16... Na6 {[%emt 0:03:31]} 17. Bc2 {[%emt 0:01:37]} Nh5 {[%emt 0:04:19]} (17... Nc5 $16 18. Rad1 Rac8) 18. Bh6 f6 {[%emt 0:06:24]} 19. Be3 {[%emt 0:03:57]} Rac8 {[%emt 0:01:57]} 20. Bd4 {[%emt 0:01:04]} (20. Bxa7 b6) (20. g4 $18 Ng7 21. Bd4 (21. Bxa7 b6 $16)) 20... Qd8 {[%emt 0:00:46]} 21. g4 {[%emt 0:01:08]} Ng7 {[%emt 0:00:04]} 22. Qf4 $1 {[%emt 0:00:09]} (22. Bxa7 $6 b6 $14) 22... Be7 {[%emt 0:00:21]} 23. Qh6 {[%emt 0:00:24][%cal Of3g5]} (23. Bxa7 $6 b6 $14) 23... Bf8 {[%emt 0:00:23]} 24. Qf4 {[%emt 0:00:09] Prevents Nf5.} (24. Bxa7 $6 b6 $11) (24. Bxf6 $18 {White wants to mate with Ng5.} Nh5 (24... Qxf6 $2 25. Ng5 $18) 25. Qxh7+ (25. Bxd8 Bxh6 26. gxh5 Rcxd8 $16) 25... Kxh7 26. Bxd8 Rcxd8 27. gxh5) 24... Re5 {[%emt 0:05:12][%mdl 8192] Against Ng5} (24... Be7 $11) 25. Qe3 {[%emt 0:01:12]} (25. Bxa7 $18 b6 26. Ba4) 25... Nc5 {[%emt 0:00:48]} 26. Rad1 {[%emt 0:00:39]} h5 {[%emt 0:01:47] [#]} 27. g5 {[%emt 0:00:30]} Nf5 $11 {[%emt 0:00:15]} 28. Qd2 {[%emt 0:00:34]} Nxd4 {[%emt 0:00:20]} 29. Qxd4 {[%emt 0:00:06]} Bxh3 $1 {[%emt 0:03:10]} 30. gxf6 {[%emt 0:00:42]} ({White should try} 30. Nxe5 $15 fxe5 31. Qe3) 30... Qxf6 $17 {[%emt 0:00:00]} 31. Qe3 {[%emt 0:00:42]} Bg4 {[%emt 0:01:49] Black is more active.} 32. Nxe5 {[%emt 0:00:17]} dxe5 $40 {[%emt 0:00:07][%mdl 128] Black goes for the king.} (32... Qxe5 33. Rd2 $11 (33. f4 Qf6 $14)) 33. Rd2 {[%emt 0:00:41][%cal Od5d6]} Kh7 {[%emt 0:00:24]} 34. f4 $2 {[%emt 0:00:29]} (34. Qg3 $17 {is a better chance.}) 34... Nd3 $19 {[%emt 0:01:32]} (34... Qxf4 35. Qxf4 exf4 36. e5 $11) (34... exf4 35. Qf2 $19) 35. fxe5 {[%emt 0:00:33]} (35. Bxd3 $142 exf4 (35... Bc5 $2 36. Qxc5 Rxc5 37. Bf1 $19) 36. Rf2) 35... Qxe5 {[%emt 0:00:16]} 36. d6 {[%emt 0:00:31]} Bxd6 {[%emt 0:00:27] Strongly threatening ...Bc5.} (36... Nxb2 37. Rd5 Qe6 38. e5 $16 (38. Qxa7 Bf3 $17)) 37. Na4 {[%emt 0:00:29]} b5 {[%emt 0:01:57]} ({Stronger than} 37... Nxb2 38. Rxd6 Qxd6 (38... Nxa4 39. Rd5 $16) 39. e5 $11) 38. Bxd3 {[%emt 0:00:29]} bxa4 {[%emt 0:00:10]} 39. Qxa7+ {[%emt 0:00:32]} Rc7 {[%emt 0:00:15]} 40. Rf2 {[%emt 0:00:28]} Rxa7 {[%emt 0:00:07] Black used his chance.   Weighted Error Value: White=1.05/Black=0.22 (precise)   Loses game:     	White=1     	Black=1      Missed win:     	White=2     	---        Mistake:       	White=4     	Black=4      Inaccurate:     	White=1     	---        OK:         	White=8     	Black=13     Best:        	White=1     	Black=3      Strong:       	White=2     	Black=1} (40... Qg3+ $142 41. Rg2 Qxe1+ 42. Bf1 Rxa7 43. Rf2 Bc5 (43... Qxe4 {gets mated.} 44. b4 axb3 45. a4 c3 46. Rf6 Qe3+ 47. Rf2 Bc5 48. Kh2 Qxf2+ 49. Bg2 Qh4+ 50. Bh3 Qxh3#) 44. Kh2 Qxf2+ (44... Bxf2 45. Kg2 Bg3 46. Bxc4 Qf2+ 47. Kh1 Qh2#) 45. Bg2 Qh4+ 46. Bh3 Qxh3#) 0-1

[Event "SixDays Budapest March GM A 2025"]
[Site "Budapest"]
[Date "2025.03.25"]
[Round "3.3"]
[White "Zia, Tahsin Tajwar"]
[Black "Rohrer, Christophe"]
[Result "1-0"]
[Annotator "TA"]
[ECO "A05"]
[WhiteElo "2327"]
[BlackElo "2266"]
[PlyCount "81"]
[EventDate "2025.03.23"]
[EventCountry "HUN"]
[SourceTitle "playchess.com"]
[Source "ChessBase"]
[SourceQuality "1"]
[TimeControl "5400+30"]

{[%evp 13,81,-8,12,14,6,-1,31,31,41,65,57,50,52,52,52,31,77,45,33,31,43,69,33,50,39,16,16,22,10,26,18,12,21,24,20,20,11,18,18,27,43,25,44,14,32,4,41,22,370,366,547,210,210,211,211,212,284,293,436,406,665,665,1262,1185,2595,2680,915,1000,845,455]} 1. Nf3 {[%emt 0:01:50]} Nf6 {[%emt 0:00:08]} 2. g3 {[%emt 0:01:41]} d5 {[%emt 0:00:10]} 3. Bg2 {[%emt 0:00:06]} e6 {[%emt 0:00:19]} 4. O-O {[%emt 0:00:11]} Be7 {[%emt 0:00:13]} 5. d4 {[%emt 0:00:27]} O-O {[%emt 0:00:15]} 6. c4 {[%emt 0:00:16]} dxc4 {[%emt 0:00:09]} 7. Qc2 {[%emt 0:00:07]} b5 {[%emt 0:00:37][%cal Bb7b5,Bb5b4][%mdl 32]} 8. a4 {[%emt 0:00:33] E05: Open Catalan: 5 Nf3 Be7.} b4 {[%emt 0:00:20]} 9. Nfd2 {[%emt 0:01:54]} Nd5 {[%emt 0:00:44]} 10. Nxc4 {[%emt 0:00:14] White is slightly better.} (10. Qxc4 Ba6 11. Qc2 Nd7 $15 (11... Bxe2 12. Re1 $15)) 10... c5 {[%emt 0:02:04]} 11. dxc5 {[%emt 0:01:03][%cal Bd4c5,Bc5c6,Bc6c7][%mdl 32]} Ba6 {[%emt 0:00:51][%cal Ob8d7]} 12. Ne3 {[%emt 0:03:00]} Nd7 {[%emt 0:08:09]} 13. Nxd5 {[%emt 0:00:58]} exd5 {[%emt 0:00:06]} 14. c6 {[%emt 0:01:30]} Rc8 {[%emt 0:06:55] Black sacrificed a pawn} (14... Nc5 $14) 15. Bf4 {[%emt 0:04:11][%cal Oc6c7] White is more active.} (15. Bxd5 $5 Ne5 16. Rd1 $18) 15... Nc5 {[%emt 0:05:21]} 16. Rd1 {[%emt 0:01:27]} Bc4 {[%emt 0:04:20][%cal Oc4b3]} 17. c7 {[%emt 0:35:27]} Qd7 {[%emt 0:00:41]} 18. Nd2 {[%emt 0:00:05] Repels Bb3} Bxe2 {[%emt 0:05:08] [#]} 19. Nb3 $146 {[%emt 0:10:42]} ({Predecessor:} 19. Re1 Bd3 20. Qd1 Bd6 21. Bh3 f5 22. Nb3 Nxb3 23. Qxd3 Bxf4 24. Qxb3 Bxc7 25. Rad1 {½-½ Salimova,N (2390)-Alsina Leal,D (2527) Sitges Sunway op 9th 2022 (3)}) 19... Nxb3 {[%emt 0:17:21]} (19... Bxd1 {with more complications.} 20. Rxd1 Nxb3 21. Qxb3 Rxc7 22. Bxd5 Qc8) 20. Qxb3 {[%emt 0:05:50]} Bxd1 {[%emt 0:01:58]} 21. Rxd1 {[%emt 0:00:02]} Rxc7 {[%emt 0:01:11]} 22. Bxd5 {[%emt 0:04:08] This pair of bishops is nice.} Qc8 {[%emt 0:01:44]} 23. Bxc7 {[%emt 0:02:49]} Qxc7 {[%emt 0:00:06] Black is weak on the light squares} 24. Kg2 {[%emt 0:02:31]} a5 {[%emt 0:08:42]} 25. Qf3 {[%emt 0:05:38]} Bf6 {[%emt 0:01:08]} 26. b3 {[%emt 0:00:19]} Rc8 {[%emt 0:05:41]} 27. h4 {[%emt 0:01:08]} Qe7 {[%emt 0:03:33]} 28. Qg4 {[%emt 0:08:26]} Rd8 {[%emt 0:00:44]} 29. Rd3 $36 {[%emt 0:01:03][%mdl 2048] White has some pressure.} Qe5 {[%emt 0:01:02][%cal Og7g6]} 30. Qf3 {[%emt 0:00:27][%cal Od5f7] [#]} h5 $2 {[%emt 0:01:25][%mdl 8192] Loses the game.} (30... Qc7 $11 {and Black stays safe.}) 31. Bxf7+ $1 $18 {[%emt 0:01:20]} Kf8 {[%emt 0:03:17]} (31... Kh8 $142 32. Re3 (32. Qxh5+ Qxh5 33. Rxd8+ Bxd8 $16) 32... Qc5) 32. Rxd8+ $2 {[%emt 0:00:50]} (32. Bxh5 $2 {perishes.} Rxd3 33. Qxd3 Qxh5 34. Qd6+ Kg8 $19) (32. Re3 Qc5 33. Bc4 (33. Qxh5 Qxh5 34. Bxh5 g5 $18) (33. Bxh5 Kg8 $18)) 32... Bxd8 {[%emt 0:00:05]} 33. Bxh5+ {[%emt 0:00:48][%mdl 4096] Endgame KQB-KQB. White is two pawns up.} Qf6 {[%emt 0:01:45]} 34. Qe4 {[%emt 0:01:04]} Be7 {[%emt 0:00:43]} 35. Bg6 {[%emt 0:01:04]} Qd6 {[%emt 0:01:26]} (35... Kg8 $142 36. Qd5+ Kf8) 36. g4 {[%emt 0:01:26][%cal Bg3g4,Bg4g5][%mdl 32] Strongly threatening g5.} Qd7 {[%emt 0:01:23]} (36... Kg8 $142 37. g5 Qd7) 37. Qf3+ {[%emt 0:00:23] White is clearly winning.} Kg8 {[%emt 0:00:24]} 38. Bf7+ {[%emt 0:01:12]} Kh8 {[%emt 0:00:20]} 39. g5 {[%emt 0:00:23]} g6 {[%emt 0:01:21] Against Qh5+} 40. Bxg6 {[%emt 0:00:07] Qh5+ would kill now.} Bd6 {[%emt 0:00:23]} 41. Bf5 {[%emt 0:00:42] Weighted Error Value: White=0.17 (very precise) /Black=0.74  Loses game:     	---       	Black=1      Mistake:       	White=1     	Black=4      Inaccurate:     	White=3     	Black=4      OK:         	White=14    	Black=13     Best:        	White=1     	Black=2      Strong:       	White=1     	---} 1-0

[Event "SixDays Budapest March GM A 2025"]
[Site "Budapest"]
[Date "2025.03.25"]
[Round "3.4"]
[White "Berczes, David"]
[Black "Ostrovskiy, Aleksandr"]
[Result "1/2-1/2"]
[Annotator "TA"]
[ECO "D02"]
[WhiteElo "2408"]
[BlackElo "2394"]
[PlyCount "52"]
[EventDate "2025.03.23"]
[EventCountry "HUN"]
[SourceTitle "playchess.com"]
[Source "ChessBase"]
[SourceQuality "1"]
[TimeControl "5400+30"]

{[%evp 13,52,0,-5,-10,2,-23,0,0,16,12,16,21,25,-52,-52,-85,-88,-80,-91,-114,-77,-118,-58,-83,-64,-75,-75,-75,-68,-96,-96,-91,-105,-100,-84,-76,0,-68,0,-57,0]} 1. d4 {[%emt 0:13:56]} d5 {[%emt 0:02:44]} 2. Nf3 {[%emt 0:00:12]} Nf6 {[%emt 0:00:17]} 3. c4 {[%emt 0:00:05]} e6 {[%emt 0:00:06]} 4. g3 {[%emt 0:00:07]} Bb4+ {[%emt 0:03:26]} 5. Bd2 {[%emt 0:03:03]} Be7 {[%emt 0:00:45]} 6. Bg2 {[%emt 0:00:06]} O-O {[%emt 0:00:09]} 7. O-O {[%emt 0:00:16]} Nbd7 {[%emt 0:00:33]} 8. Qb3 {[%emt 0:10:28] E11: Bogo-Indian.} a5 {[%emt 0:02:38][%cal Ba7a5,Ba5a4][%mdl 32]} 9. Bf4 {[%emt 0:02:20]} c6 {[%emt 0:14:45]} 10. Rd1 {[%emt 0:03:28] The position is equal.} a4 {[%emt 0:08:09]} 11. Qc2 {[%emt 0:01:36]} h6 {[%emt 0:00:12]} 12. h4 $146 {[%emt 0:03:05]} ({Predecessor:} 12. a3 Qa5 13. Nbd2 Nh5 14. Be3 Bd6 15. Rac1 b5 16. c5 Bb8 17. Ne1 e5 18. Nd3 {1-0 Giri,A (2731)-Praggnanandhaa,R (2741) Tata Steel-A 87th 2025 (9)}) 12... Qa5 {[%emt 0:13:30]} 13. Nc3 {[%emt 0:27:03]} (13. Nbd2 $11) 13... dxc4 $15 {[%emt 0:04:21]} 14. a3 {[%emt 0:02:20]} b5 {[%emt 0:20:46]} 15. e4 {[%emt 0:02:35]} Bb7 {[%emt 0:01:49]} 16. Bh3 {[%emt 0:13:43]} Rfe8 {[%emt 0:09:29]} 17. Bd2 {[%emt 0:12:29]} Qa6 {[%emt 0:01:49]} (17... c5 $17 {Hoping for ...b4.} 18. d5 exd5 19. exd5 Qa6) 18. g4 {[%emt 0:02:02]} Nh7 {[%emt 0:05:28]} 19. g5 {[%emt 0:00:30]} hxg5 {[%emt 0:00:09]} 20. hxg5 {[%emt 0:00:03][%cal Og5g6]} Nhf8 {[%emt 0:00:14]} 21. Be3 {[%emt 0:00:33]} Rad8 {[%emt 0:04:22]} 22. Bf4 {[%emt 0:00:55]} Ng6 {[%emt 0:02:26]} 23. Bc7 {[%emt 0:00:10]} Rc8 {[%emt 0:00:11]} 24. Bg3 {[%emt 0:00:03]} Rcd8 {[%emt 0:02:14][%cal Oe6e5]} 25. Bc7 {[%emt 0:00:11]} Rc8 {[%emt 0:00:04]} 26. Bg3 {[%emt 0:00:03]} Rcd8 {[%emt 0:01:46] Weighted Error Value: White=0.12 (very precise) /Black=0.16 (very precise)   Mistake:       	White=1     	Black=2      Inaccurate:     	White=2     	Black=1      OK:         	White=8     	Black=8      Best:        	White=2     	Black=1} (26... Bd8 $15) 1/2-1/2